Cogmind - Beta 13 @@@ ROGUE MODE // 2024.04.07 @ 00:18:09 Player: Ragonath Result: Self-destructed Performance ------------- Evolutions (1) 500 Regions Visited (2) 400 Robots Destroyed (36) 180 Value Destroyed (934) 934 Prototype IDs (2) 40 Alien Tech Used (0) 0 Bonus (11) 11 TOTAL SCORE: 2065 Bonus ------- High Alert Combat Kills 11 Cogmind --------- Core Integrity 199/400 Matter 231/300 Energy 31/100 System Corruption 0% Temperature Cool (0) Movement Treading (160) Location -9/Materials Parts ------- > --- POWER (1) -------- (None) > --- PROPULSION (3) --- Light Treads Light Treads Light Treads > --- UTILITY (3) ------ Small Storage Unit Shield Generator Hacking Suite > --- WEAPON (2) ------- Heavy Assault Rifle > --- INVENTORY (8) ---- Light Treads Light Treads Aluminum Leg Aluminum Leg Aluminum Leg Hacking Suite Datajack Peak State ------------ > --- POWER ------------ Improved Ion Engine > --- PROPULSION ------- Light Treads Light Treads Light Treads > --- UTILITY ---------- Small Storage Unit Shield Generator Hacking Suite > --- WEAPON ----------- Heavy Assault Rifle Heavy Assault Rifle > --- INVENTORY -------- Light Treads Light Treads Aluminum Leg Aluminum Leg Aluminum Leg Datajack [Rating: 15] Favorites ----------- Power Light Ion Engine Engine Light Ion Engine Propulsion Light Treads Treads Light Treads Leg Aluminum Leg Utility Small Storage Unit Device Shield Generator Storage Small Storage Unit Hackware Hacking Suite Weapon Light Assault Rifle Ballistic Gun Light Assault Rifle Build | -11 -10 -9 ------- Run | Yrd Mat Mat Slots Evolved 2 | . . 2 Power . | . . . Propulsion 1 | . . 1 Utility 1 | . . 1 Weapon . | . . . Parts Attached 23 | 5 6 12 Power 3 | 1 1 1 Engine 3 | 1 1 1 Core . | . . . Reactor . | . . . Propulsion 10 | 2 2 6 Treads 7 | . 2 5 Leg 3 | 2 . 1 Wheel . | . . . Hover . | . . . Flight . | . . . Utility 4 | . 2 2 Device 2 | . . 2 Storage 1 | . 1 . Processor . | . . . Hackware 1 | . 1 . Protection . | . . . Artifact . | . . . Weapon 6 | 2 1 3 Energy Gun . | . . . Energy Cannon . | . . . Ballistic Gun 6 | 2 1 3 Ballistic Cannon . | . . . Launcher . | . . . Special Weapon . | . . . Impact Weapon . | . . . Slashing Weapon . | . . . Piercing Weapon . | . . . Special Melee Weapon . | . . . Unidentified Prototypes . | . . . Parts Lost 11 | . 4 7 Power 2 | . 1 1 Propulsion 3 | . 2 1 Utility 1 | . . 1 Weapon 5 | . 1 4 Highest Loss Streak 2 | . 2 2 To Critical Strikes 2 | . 1 1 Average Slot Usage (%) 91 | . 96 88 Engine 11 | . 13 10 Treads 22 | . 10 29 Leg 7 | . 16 1 Device 2 | . . 4 Storage 11 | . 12 11 Hackware 11 | . 12 11 Ballistic Gun 22 | . 27 20 Naked Turns . | . . . Heaviest Build 20 | 5 10 20 Greatest Support 60 | 20 40 60 Greatest Overweight (x) 1 | . . 1 Average Overweight (x) . | . . . Largest Inventory Capacity 8 | 5 8 8 Average Capacity 7 | 5 7 8 Most Carried 8 | 3 8 7 Average Carried 5 | 1 5 5 Final Capacity 8 | 5 8 8 Final Carried 7 | 3 6 7 Class Distribution -------------------- 55% | Scavenger-Mutant 44% | Mutant Dominant Class ---------------- Mutant | -10/Materials Scavenger-Mutant | -9/Materials Resources | -11 -10 -9 ----------- Run | Yrd Mat Mat Matter Collected 754 | 250 151 353 Remotely . | . . . Salvage Created 1220 | . 287 933 Parts 81 | . 26 55 Haulers Intercepted . | . . . Recyclers Shooed 1 | . . 1 Parts Field Recycled . | . . . Retrieved Matter . | . . . Parts Self-Destructed . | . . . Prevented . | . . . Kills | -11 -10 -9 ------- Run | Yrd Mat Mat Combat Hostiles Destroyed 28 | . 9 19 Guns 28 | . 9 19 Classes Destroyed 8 | . 5 3 Worker 1 | . 1 . Recycler 2 | . . 2 Operator 2 | . 1 1 Watcher 3 | . 2 1 Swarmer 9 | . 5 4 Grunt 11 | . 4 7 Duelist 2 | . . 2 Sentry 6 | . . 6 Best Kill Streak 5 | . 3 5 Combat Bots Only 5 | . 3 5 Max Kills in Single Turn 2 | . 2 1 Gunslinging 1 | . 1 . Exploded . | . . . Melee . | . . . Uniques/NPCs Destroyed . | . . . Combat | -11 -10 -9 -------- Run | Yrd Mat Mat Hostile Shots Fired 205 | . 60 145 Missed 47 | . 10 37 Damage Taken 1903 | . 476 1427 Core 273 | . 72 201 Absorbed by Shields 112 | . . 112 Regen/Repaired (Parts) 36 | . . 36 Core Remaining (%) 85 | 100 71 . Volleys Fired 156 | . 58 98 Largest 2 | . 2 2 Hottest 46 | . 40 46 Shots Fired 267 | . 108 159 Gun 267 | . 108 159 Cannon . | . . . Launcher . | . . . Special . | . . . Kinetic 267 | . 108 159 Thermal . | . . . Explosive . | . . . Electromagnetic . | . . . Robot Hit Streak 21 | . 8 21 Robot Miss Streak 5 | . 5 4 Penetration Max . | . . . Secondary Targets 1 | . 1 . Max Gunslinging Chain 1 | . 1 . Shots Hit Robots 181 | . 56 125 Core Hits 73 | . 29 44 Critical Kills . | . . . Critical Parts Destroyed 1 | . . 1 Critical Strikes 1 | . . 1 Destroy 1 | . . 1 Melee Attacks . | . . . Impact . | . . . Slashing . | . . . Piercing . | . . . Sneak Attacks . | . . . Combat Hostiles . | . . . Follow-up Attacks . | . . . Damage Inflicted 1942 | . 451 1491 Guns 1941 | . 451 1490 Cannons . | . . . Explosions . | . . . Melee . | . . . Ramming 1 | . . 1 Kinetic 1941 | . 451 1490 Thermal . | . . . Explosive . | . . . Electromagnetic . | . . . Impact . | . . . Slashing . | . . . Piercing . | . . . Highest Corruption . | . . . Average Corruption . | . . . Corruption Purged . | . . . Corruption Blocked . | . . . Overload Shots . | . . . Overflow Damage . | . . . Projectiles . | . . . Explosions . | . . . Melee . | . . . Knockbacks . | . . . Impact . | . . . Kinetic . | . . . Secondary . | . . . Self-Inflicted Damage . | . . . Shots . | . . . Rammed 1 | . . 1 Targets Rammed 1 | . . 1 Kicked . | . . . Crushed . | . . . Highest Temperature 19 | . 19 12 Average Temperature 7 | . 10 4 Received Heat Transfer 512 | . 138 374 Siege Activations . | . . . Robots Corrupted . | . . . Combat Hostiles . | . . . Parts Fried . | . . . Impact Corruptions . | . . . Robots Melted . | . . . Combat Hostiles . | . . . Parts Melted . | . . . Heat Transferred . | . . . Parts Sabotaged . | . . . Parts Stolen . | . . . Parts Stripped . | . . . Power Chain Reactions . | . . . Alert | -11 -10 -9 ------- Run | Yrd Mat Mat Peak Influence 436 | . 243 436 Initial 31 | . . 31 Average 180 | . 90 252 Maximum Alert Level 2 | . 1 2 Low Security (%) 62 | 100 89 42 Level 1 27 | . 10 40 Level 2 10 | . . 17 Level 3 . | . . . Level 4 . | . . . Level 5 . | . . . High Security . | . . . Max Security . | . . . Squads Dispatched 5 | . 1 4 Investigation 2 | . . 2 Extermination . | . . . Reinforcement 3 | . 1 2 Assault . | . . . Garrison . | . . . Intercept . | . . . Searches Triggered . | . . . Construction Impeded . | . . . Haulers Reinforced . | . . . Active Scanning Responses . | . . . Cargo Convoy Interrupts . | . . . Stealth | -11 -10 -9 --------- Run | Yrd Mat Mat Distress Signals 3 | . . 3 Communications Jammed . | . . . Distress Signals . | . . . Times Spotted 48 | . 16 32 Peak Tracking Total 6 | . 4 6 Tactical Retreats 3 | . . 3 Traps | -11 -10 -9 ------- Run | Yrd Mat Mat Traps Triggered . | . . . Indirectly . | . . . Trap Hack Attempts . | . . . Triggered . | . . . Disarmed . | . . . Reprogrammed . | . . . Reused . | . . . Traps Extracted . | . . . Installed . | . . . Triggered . | . . . Machines | -11 -10 -9 ---------- Run | Yrd Mat Mat Machines Disabled . | . . . Max in Single Turn . | . . . Machines Repaired . | . . . Machines Dismantled . | . . . Machines Sabotaged . | . . . Overloaded Fab Kills . | . . . Hacking | -11 -10 -9 --------- Run | Yrd Mat Mat Machines Accessed 8 | . 4 4 Terminals 7 | . 4 3 Fabricators . | . . . Repair Stations 1 | . . 1 Recycling Units . | . . . Scanalyzers . | . . . Garrison Access . | . . . Total Hacks 26 | . 11 15 Successful 15 | . 6 9 Failed 11 | . 5 6 Catastrophic 1 | . 1 . Database Lockouts . | . . . Manual 2 | . 2 . Terminals 21 | . 11 10 Fabricators . | . . . Repair Stations 5 | . . 5 Recycling Units . | . . . Scanalyzers . | . . . Garrison Access . | . . . Terminal Hacks 10 | . 6 4 Robot Analysis 2 | . 1 1 Prototype ID Bank 1 | . . 1 Branch Access Points 1 | . . 1 Maintenance Status 1 | . . 1 Patrol Status 1 | . 1 . Transport Status 1 | . 1 . Investigation Status 1 | . 1 . Recall Investigation 1 | . 1 . Hauler Manifests 1 | . 1 . Fabricator Hacks . | . . . Repair Station Hacks 5 | . . 5 Scan Component 3 | . . 3 Repair 2 | . . 2 Recycling Unit Hacks . | . . . Scanalyzer . | . . . Garrison Access Hacks . | . . . Unauthorized Hacks . | . . . Terminals . | . . . Fabricators . | . . . Repair Stations . | . . . Recycling Units . | . . . Scanalyzers . | . . . Garrison Access . | . . . Data Cores Recovered . | . . . Used . | . . . Hacking Detections 5 | . 2 3 Full Trace Events 3 | . 1 2 Feedback Events . | . . . Feedback Blocked . | . . . Robot Schematics Acquired . | . . . Robots Built . | . . . Authchips . | . . . Time . | . . . Total Robot Build Rating . | . . . Part Schematics Acquired . | . . . Parts Built . | . . . Authchips . | . . . Time . | . . . Total Part Build Rating . | . . . Parts Repaired 2 | . . 2 Time 52 | . . 52 Parts Recycled . | . . . Recycled Matter . | . . . Retrieved Matter . | . . . Retrieved Components . | . . . Parts Scanalyzed . | . . . Part Schematics Acquired . | . . . Parts Damaged . | . . . Bothacking | -11 -10 -9 ------------ Run | Yrd Mat Mat Used RIF Installer . | . . . Robots Hacked . | . . . Non-combat . | . . . Combat . | . . . Robot Hacks Applied . | . . . Relay Couplers Released . | . . . Fabnet Peak Effective % . | . . . Robots Rewired . | . . . Allies Hacked . | . . . Hacks Repelled . | . . . Allies | -11 -10 -9 -------- Run | Yrd Mat Mat Total Allies . | . . . Largest Group . | . . . Highest-Rated Group . | . . . Highest-Rated Ally . | . . . Total Orders . | . . . Ally Attacks . | . . . Total Damage . | . . . Kills . | . . . Allies Corrupted . | . . . Allies Melted . | . . . Intel | -11 -10 -9 ------- Run | Yrd Mat Mat Robot Analysis Total 2 | . 1 1 Derelict Logs Recovered . | . . . Drone Launches . | . . . Drone Recoveries . | . . . Exploration | -11 -10 -9 ------------- Run | Yrd Mat Mat Turns Passed 1613 | 66 613 934 Spaces Moved 766 | 51 326 389 Core 11 | 11 . . Treads 457 | . 138 319 Legs 298 | 40 188 70 Wheels . | . . . Hover . | . . . Flight . | . . . Fastest Speed 50 | 50 120 120 Average Speed 145 | 104 136 158 Slowest Speed 190 | 120 160 190 Overloaded Moves . | . . . Propulsion Burnouts . | . . . Robots Hopped . | . . . Cave-ins Triggered . | . . . Exploration Rate (%) 37 | 4 67 42 Regions Visited 2 Branch Regions . Pre-discovered Areas . | . . . Known Exits Taken . | . . . Unknown Exits Taken 2 | 1 1 . Scrap Searched . | . . . Spaces Dug . | . . . Terrain Destroyed . | . . . Melee . | . . . Projectile . | . . . AOE . | . . . Terrain Rammed . | . . . Walls Destroyed . | . . . Machines Disabled . | . . . Actions | -11 -10 -9 --------- Run | Yrd Mat Mat Total 1029 | 63 406 560 Wait 58 | . 8 50 Move 764 | 50 325 389 Hop . | . . . Pick Up 27 | 8 9 10 Fast Attach 1 | . . 1 Attach 19 | 5 6 8 Detach . | . . . Swap 3 | . . 3 Drop . | . . . Fire 156 | . 58 98 Melee . | . . . Ram . | . . . Kick . | . . . Crush 1 | . . 1 Escape Stasis . | . . . Rewire . | . . . Trap . | . . . Miscellaneous . | . . . Route ------- -11/Scrapyard -10/Materials (discovered 2 exits: *Mat / [*Min]) -9/Materials (discovered 2 exits: [*Mat] / Min) History --------- Turn | Location | Event 4 | -11/Scrapyard | Discovered new exit (range 15) 67 | -11/Scrapyard | Entered Materials 311 | -10/Materials | Build established: Mutant 476 | -10/Materials | Discovered new exit (range 9) 620 | -10/Materials | Discovered new exit (range 16) 680 | -10/Materials | Entered another Materials area 680 | -9/Materials | Evolved 2 slots: Propulsion x1, Utility x1 950 | -9/Materials | Repaired Lgt. Treads 976 | -9/Materials | Repaired Lgt. Ion Engine 1181 | -9/Materials | Build established: Scavenger-Mutant 1256 | -9/Materials | Identified exit to Mines 1392 | -9/Materials | Discovered new exit (range 15) 1606 | -9/Materials | Core integrity fell below 50% 1614 | -9/Materials | Self-destructed Last Messages --------------- Tier: 1 R-series recyclers collect used, damaged, or unregistered components for recycling and repurposing. To minimize losses during derelict incursions, like most other maintenance robots they are of relatively sturdy construction, but remain somewhat susceptible to electromagnetic damage as such weaponry is not prevalent enough to warrant specialized defenses. ALERT: Suspicious activity at Terminal M010. Dispatching Investigation squad. T-07 Excavator is excavating. U-05 Engineer lays Concrete. T-07 Excavator is excavating. W-16 Scout sends out distress signal. Slammed into T-07 Excavator. Hvy. Assault Rifle destroyed. Imp. Ion Engine destroyed. G-34 Mercenary destroyed. Map ----- +----------------------------------------------------+ | ???????????# "" #??????# #? | | ???????????+ #??????+ #? | | ???????????# #??????# #? | | ???????????# != #??????# #? | | ???????????# ! #??????# # | | ?????#+#???# #??????# # | | ####?# #???# #??????# | | # ?# #???# #??????# # | | #]]] # #???# #????### ## | | #]]] # ##### ###### | | #]] + | | # # ################## | | ?##### ##???????????????# T | | ????# #???????????????# | | ????# #???????????????# | | ????# #???????????????# | | ????## ##???????????????######## | | ?????# #???????????????????????? | | ?????# #???????????????????????? | | ?????# #???????????????????????? | | ?????# #???????????????????????? | | ?????# #???????????????????????? | | ?????# #?????##????????????????? | | ?????# #??? #????????????????? | | ?????#%## #????????????????? | | ?????#[@ Y +????????????????? | | ?????# # #????????????????? | | ???? #? #????????????????? | | ??? !#?? ###????????????????? | | ??#!!!!##??????????????????????? | | ??######???????????????????????? | | ???????????????????????????????? | | ???????????????????????????????? | | ???????????????????????????????? | | ???????????????????????????????? | | ???????????????????????????????? | | ???????????????????????????????? | | ???????????????????????????????? | | ???????????????????????????????? | | ???????????????????????????????? | | ???????????????????????????????? | | ???????????????????????????????? | | ???????????????????????????????? | | ???????????????????????????????? | | ???????????????????????????????? | | ???????????????????????????????? | | ???????????????????????????????? | | ???????????????????????????????? | | ???????????????????????????????? | | ???????????????????????????????? | +----------------------------------------------------+ Best States ------------- Heat Dissipation 28 Energy Generation 12 Energy Capacity 265 Matter Stores 300 Matter Capacity 300 Sight Range 16 Terrain Scan Density 10 Evasion (%) 55 Recoil Reduction 3 Offensive Hacking 10 Item Schematics ----------------- None Robot Schematics ------------------ None Fabricated ------------ Nothing Alien Tech Used ----------------- None Achievements -------------- Shopping List Challenges ------------ None Game ------ Seed RestorationSwarmProcessor Manual? 0 Play Time 00:20:41 Cumulative 5.6 hours Start 2024.04.06 @ 23:56:39 End 2024.04.07 @ 00:18:09 Sessions 1 Manual Loads 0 Difficulty Rogue Special Mode None Game No. 11 Rogue 11 Adventurer 0 Explorer 0 Win Type - Total 0 Types 0/0/0/0/0/0/0/0/0 Lore% 5 Gallery% 10 Achievement% 8 Wizard Run 0 Options --------- Layout 1 ASCII 0 Keyboard 0 Movement Mouse Keybinds 0 Fullscreen 1 Font 32/SmallcapsGlow Map View 50x35 Zoom Use 0% Tactical HUD 0 Map Filters NONE Filters NONE Steam 1 RUN: d194fb67-dfa3-45f7-b52a-833cbfbfa8e6